Cogmind - Beta 13 --- EXPLORER MODE // 2024.04.11 @ 00:59:18 Player: Big Tortoise Result: Destroyed by Lightning with EMDS Performance ------------- Evolutions (4) 2000 Regions Visited (11) 2200 Robots Destroyed (148) 740 Value Destroyed (5899) 5899 Prototype IDs (21) 420 Alien Tech Used (0) 0 Bonus (3007) 3007 TOTAL SCORE: 14266 Bonus ------- High Alert Combat Kills 124 Follower Combat Kills 503 Network Hubs Disabled 800 Met Imprinter 300 Met Zhirov 300 A7 Reached Mainframe 300 Met R17 at Cetus 500 Read Decrypted Archives 300 Friendly Fire -120 Cogmind --------- Core Integrity 0/850 Matter 194/300 Energy 50/100 System Corruption 21% Temperature Cool (0) Movement Core (50) Location -6/Hub_04(d) Parts ------- > --- POWER (2) -------- (None) > --- PROPULSION (3) --- (None) > --- UTILITY (7) ------ Targeting Computer Improved Utility Shielding Experimental Hacking Suite > --- WEAPON (4) ------- (None) > --- INVENTORY (5) ---- Phasing AFG Storm Laser Peak State ------------ > --- POWER ------------ Improved Deuterium Engine Quantum Reactor > --- PROPULSION ------- Light Treads Armored Huge Wheel > --- UTILITY ---------- Advanced Heat Sink Improved Cooling System Large Storage Unit Improved Heavy Armor Plating Hacking Suite Experimental Hacking Suite > --- WEAPON ----------- Gatling Laser Heavy Machine Gun Advanced Assault Cannon Heavy Flak Cannon > --- INVENTORY -------- Large Matter Pod Improved Heavy Armor Plating Centrium Medium Armor Plating System Restoration Module Phasing AFG Storm Laser Flak Gun Flak Gun Mini Grenade Launcher Great Maul [Rating: 78] Favorites ----------- Power Improved Deuterium Engine Engine Improved Deuterium Engine Power Core Micro Nuclear Core Reactor Quantum Reactor Propulsion Light Treads Treads Light Treads Leg Aluminum Leg Wheel Armored Huge Wheel Utility Large Storage Unit Device Advanced Heat Sink Storage Large Storage Unit Processor Targeting Computer Hackware Experimental Hacking Suite Protection Core Shielding Weapon Improved EM Shotgun Energy Gun Improved EM Shotgun Ballistic Gun Flak Gun Ballistic Cannon Gauss Cannon Launcher Mini Grenade Launcher Special Weapon Mining Laser Impact Weapon Impact Mace Build | -11 -10 -10 -9 -9 -7 -6 -6 -6 -6 -6 -6 ------- Run | Yrd Mat Min Mat Min Zio Pro Fac Ext Cet Arc Hub Slots Evolved 9 | . 1 . 2 . . . 6 . . . . Power 1 | . . . . . . . 1 . . . . Propulsion 1 | . . . 1 . . . . . . . . Utility 5 | . 1 . 1 . . . 3 . . . . Weapon 2 | . . . . . . . 2 . . . . Parts Attached 142 | 8 10 2 33 . 2 2 17 19 9 . 40 Power 13 | 1 1 . 4 . 1 . 1 1 1 . 3 Engine 10 | 1 . . 4 . 1 . 1 1 . . 2 Core 2 | . 1 . . . . . . . . . 1 Reactor 1 | . . . . . . . . . 1 . . Propulsion 28 | 2 2 2 10 . . . 1 1 1 . 9 Treads 13 | . . . 7 . . . . 1 1 . 4 Leg 5 | 2 . . 2 . . . . . . . 1 Wheel 10 | . 2 2 1 . . . 1 . . . 4 Hover . | . . . . . . . . . . . . Flight . | . . . . . . . . . . . . Utility 52 | 3 4 . 7 . 1 1 9 9 4 . 14 Device 24 | 1 3 . 1 . 1 . 5 6 2 . 5 Storage 4 | 1 . . 3 . . . . . . . . Processor 5 | . . . 2 . . . 1 . . . 2 Hackware 3 | . . . . . . . 2 . . . 1 Protection 16 | 1 1 . 1 . . 1 1 3 2 . 6 Artifact . | . . . . . . . . . . . . Weapon 49 | 2 3 . 12 . . 1 6 8 3 . 14 Energy Gun 13 | . . . 4 . . . 4 1 . . 4 Energy Cannon . | . . . . . . . . . . . . Ballistic Gun 19 | 2 3 . 2 . . . 1 4 1 . 6 Ballistic Cannon 6 | . . . . . . . . 2 1 . 3 Launcher 8 | . . . 4 . . 1 1 1 1 . . Special Weapon 2 | . . . 2 . . . . . . . . Impact Weapon 1 | . . . . . . . . . . . 1 Slashing Weapon . | . . . . . . . . . . . . Piercing Weapon . | . . . . . . . . . . . . Special Melee Weapon . | . . . . . . . . . . . . Unidentified Prototypes 7 | . . . 3 . 1 . 1 . 1 . 1 Parts Lost 36 | . . 7 7 . . . . 4 1 8 9 Power 7 | . . 1 1 . . . . 1 . 1 3 Propulsion 8 | . . 3 2 . . . . 1 . 2 . Utility 9 | . . 1 1 . . . . 1 1 3 2 Weapon 12 | . . 2 3 . . . . 1 . 2 4 Highest Loss Streak 8 | . . 4 6 . . . . 4 1 8 2 To Critical Strikes . | . . . . . . . . . . . . Average Slot Usage (%) 83 | . 94 59 86 100 99 100 90 91 87 42 77 Engine 7 | . 8 . 8 10 10 10 11 11 7 6 4 Core 1 | . 3 6 . . . . . . . . 2 Treads 11 | . . . 20 30 30 30 7 5 6 . 5 Leg 1 | . 6 . 2 . . . . . . . 1 Wheel 4 | . 18 18 3 . . . 5 6 6 . 4 Device 10 | . 19 12 9 10 10 10 18 11 12 6 8 Storage 10 | . 12 12 13 20 20 20 8 6 6 6 5 Processor 2 | . . . 3 . . . . . . . 5 Hackware 4 | . . . . . . . 6 12 12 6 7 Protection 7 | . . 3 5 10 9 10 6 10 6 . 8 Energy Gun 10 | . . . 13 20 20 17 17 11 6 . 5 Ballistic Gun 4 | . 24 6 2 . . . 3 9 6 . 3 Ballistic Cannon 4 | . . . . . . . . 3 11 12 9 Naked Turns . | . . . . . . . . . . . . Heaviest Build 95 | 19 24 24 39 39 40 42 65 78 95 91 75 Greatest Support 60 | 20 20 20 60 60 60 60 60 28 28 28 38 Greatest Overweight (x) 17 | 6 2 1 3 . . . 3 2 3 14 17 Average Overweight (x) 1 | . 1 . . . . . 1 1 2 9 2 Largest Inventory Capacity 15 | 10 10 10 15 15 15 15 15 15 15 15 15 Average Capacity 14 | 9 10 10 10 15 15 15 15 15 15 15 14 Most Carried 15 | 4 8 9 11 11 15 15 15 15 15 14 15 Average Carried 12 | 2 5 8 8 11 14 14 12 14 14 14 14 Final Capacity 15 | 10 10 10 15 15 15 15 15 15 15 15 5 Final Carried 15 | 4 8 8 11 11 15 15 15 15 14 14 5 Class Distribution -------------------- 56% | Hacker-Mutant 37% | Hacker-Tank 4% | Hacker-Gunner Dominant Class ---------------- Hacker-Mutant | -10/Materials Hacker-Mutant | -10/Mines Hacker-Mutant | -9/Materials Hacker-Mutant | -9/Mines Hacker-Mutant | -7/Zion Hacker-Mutant | -6/Proximity Caves Hacker-Tank | -6/Factory Hacker-Tank | -6/Extension Hacker-Tank | -6/Cetus Hacker-Mutant | -6/Archives Hacker-Tank | -6/Hub_04(d) Resources | -11 -10 -10 -9 -9 -7 -6 -6 -6 -6 -6 -6 ----------- Run | Yrd Mat Min Mat Min Zio Pro Fac Ext Cet Arc Hub Matter Collected 4290 | 312 178 40 684 . 10 22 368 478 396 190 1612 Remotely . | . . . . . . . . . . . . Salvage Created 5649 | 79 294 . 777 . . 37 1214 737 211 . 2300 Parts 256 | 13 18 . 61 . . 1 45 32 . . 86 Haulers Intercepted 6 | . . . 2 . . . 1 . . . 3 Recyclers Shooed 4 | 1 . . 3 . . . . . . . . Parts Field Recycled . | . . . . . . . . . . . . Retrieved Matter . | . . . . . . . . . . . . Parts Self-Destructed . | . . . . . . . . . . . . Prevented . | . . . . . . . . . . . . Kills | -11 -10 -10 -9 -9 -7 -6 -6 -6 -6 -6 -6 ------- Run | Yrd Mat Min Mat Min Zio Pro Fac Ext Cet Arc Hub Combat Hostiles Destroyed 109 | . 4 . 24 . . 3 19 14 9 . 36 Guns 53 | . 4 . 9 . . . 17 9 1 . 13 Cannons 31 | . . . 1 . . . . 3 8 . 19 AOE 22 | . . . 14 . . 3 1 2 . . 2 Classes Destroyed 15 | 1 3 . 4 . . . 4 1 . . 2 Worker 11 | . 3 . . . . . . 1 . . 7 Builder 2 | . . . . . . . . . . . 2 Tunneler 7 | 4 2 . . . . . . . . . 1 Hauler 6 | . . . 2 . . . 1 . . . 3 Recycler 7 | . . . 3 . . . . 1 . . 3 Operator 1 | . . . . . . . . . . . 1 Drone 1 | . . . . . . . 1 . . . . Watcher 6 | . 1 . 1 . . . . . . . 4 Swarmer 22 | . . . 12 . . 3 . 4 . . 3 Grunt 45 | . 4 . 6 . . . 13 6 3 . 13 Duelist 2 | . . . . . . . 1 . . . 1 Sentry 18 | . . . 6 . . . . 3 . . 9 Hunter 6 | . . . . . . . 2 . . . 4 Programmer 7 | . . . . . . . 2 . . . 5 Behemoth 2 | . . . . . . . . 1 . . 1 Cetus Guard 6 | . . . . . . . . . 6 . . Best Kill Streak 8 | 2 5 . 7 . . 3 4 4 5 . 8 Combat Bots Only 7 | . 4 . 5 . . 3 4 4 5 . 7 Max Kills in Single Turn 6 | 2 1 . 3 . . 2 1 2 1 . 6 Gunslinging . | . . . . . . . . . . . . Exploded 3 | . . . 3 . . 2 1 2 . . 2 Melee . | . . . . . . . . . . . . Uniques/NPCs Destroyed . | . . . . . . . . . . . . Combat | -11 -10 -10 -9 -9 -7 -6 -6 -6 -6 -6 -6 -------- Run | Yrd Mat Min Mat Min Zio Pro Fac Ext Cet Arc Hub Hostile Shots Fired 908 | . 26 16 115 . . 9 128 169 72 23 350 Missed 296 | . 8 2 34 . . 5 40 63 23 9 112 Damage Taken 7007 | . 133 416 744 . . 39 555 720 607 886 2907 Core 1187 | . 19 102 205 . . . 110 22 98 47 584 Absorbed by Shields 903 | . . . . . . . 433 242 228 . . Redirected to Shielding 110 | . . . 1 . . . . . . . 109 Ignored by Resistances 4727 | . 85 244 467 . . 24 585 589 496 493 1744 Regen/Repaired (Parts) 310 | . . . 310 . . . . . . . . Core Remaining (%) 66 | 100 . 51 . . . 48 . . . . . Volleys Fired 292 | 8 19 3 56 . . 4 58 28 19 . 97 Largest 4 | 2 2 2 2 . . 2 4 4 4 . 4 Hottest 250 | 40 43 43 120 . . 75 176 198 211 . 250 Shots Fired 768 | 16 36 4 90 . . 5 155 100 73 . 289 Gun 530 | 16 36 4 65 . . 1 152 77 32 . 147 Cannon 201 | . . . . . . . . 22 37 . 142 Launcher 31 | . . . 19 . . 4 3 1 4 . . Special 6 | . . . 6 . . . . . . . . Kinetic 469 | 16 36 4 39 . . . 38 62 53 . 221 Thermal 149 | . . . 24 . . . 58 24 16 . 27 Explosive 31 | . . . 19 . . 4 3 1 4 . . Electromagnetic 119 | . . . 8 . . 1 56 13 . . 41 Robot Hit Streak 80 | 7 14 15 41 . . . 37 49 36 . 80 Robot Miss Streak 4 | 1 2 1 1 . . . 1 4 2 . 3 Penetration Max 1 | . . . . . . . . . . . 1 Secondary Targets 11 | . 2 . 1 . . . 6 2 . . . Max Gunslinging Chain 1 | . 1 . 1 . . . 1 1 . . . Shots Hit Robots 607 | 12 26 3 79 . . . 135 80 63 . 209 Core Hits 560 | 5 14 . 53 . . 5 73 75 73 . 262 Critical Kills . | . . . . . . . . . . . . Critical Parts Destroyed 1 | . . . . . . . 1 . . . . Critical Strikes 22 | . . . 3 . . . 6 . 3 . 10 Burn 9 | . . . 3 . . . 5 . . . 1 Destroy 1 | . . . . . . . 1 . . . . Blast 11 | . . . . . . . . . 3 . 8 Corrupt 1 | . . . . . . . . . . . 1 Melee Attacks . | . . . . . . . . . . . . Impact . | . . . . . . . . . . . . Slashing . | . . . . . . . . . . . . Piercing . | . . . . . . . . . . . . Sneak Attacks . | . . . . . . . . . . . . Combat Hostiles . | . . . . . . . . . . . . Follow-up Attacks . | . . . . . . . . . . . . Damage Inflicted 17503 | 136 351 49 1593 . . 126 2779 2510 2594 . 7365 Guns 9329 | 136 351 49 643 . . . 2236 1784 813 . 3317 Cannons 4238 | . . . . . . . . 419 1165 . 2654 Explosions 3808 | . . . 822 . . 126 543 307 616 . 1394 Melee . | . . . . . . . . . . . . Ramming . | . . . . . . . . . . . . Kinetic 8395 | 136 351 49 251 . . . 414 1261 1492 . 4441 Thermal 4060 | . . . 396 . . . 1192 888 486 . 1098 Explosive 1765 | . . . 822 . . 126 100 101 616 . . Electromagnetic 3268 | . . . 124 . . . 1073 245 . . 1826 Impact 15 | . . . . . . . . 15 . . . Slashing . | . . . . . . . . . . . . Piercing . | . . . . . . . . . . . . Highest Corruption 20 | . 1 1 . . . . 1 1 . . 20 Average Corruption 2 | . 1 1 . . . . 1 1 . . 4 Corruption Purged 3 | . . . . . . . . 1 . . 2 Corruption Blocked . | . . . . . . . . . . . . Effects 60 | . 2 2 . . . . 6 1 . . 49 Message Errors 12 | . . . . . . . 4 . . . 8 Matter Fused 12 | . . . . . . . 1 . . . 11 Heat Flow Errors 8 | . . . . . . . 1 . . . 7 Energy Discharges 6 | . . 1 . . . . . . . . 5 Parts Rejected 1 | . . . . . . . . . . . 1 Parts Fused 2 | . . . . . . . . . . . 2 Data Loss (minor) 6 | . . 1 . . . . . 1 . . 4 Data Loss (major) 1 | . . . . . . . . . . . 1 Misfires 5 | . . . . . . . . . . . 5 Weapon Failures 7 | . 2 . . . . . . . . . 5 Overload Shots . | . . . . . . . . . . . . Overflow Damage 179 | . . . 33 . . . . . 32 . 114 Projectiles 52 | . . . . . . . . . . . 52 Explosions 127 | . . . 33 . . . . . 32 . 62 Melee . | . . . . . . . . . . . . Knockbacks 36 | . . . . . . . . 2 1 . 33 Impact . | . . . . . . . . . . . . Kinetic 34 | . . . . . . . . 2 1 . 31 Secondary 2 | . . . . . . . . . . . 2 Self-Inflicted Damage 462 | . . . 145 . . . 61 . . . 256 Shots 17 | . . . 10 . . . 2 . . . 5 Rammed . | . . . . . . . . . . . . Targets Rammed . | . . . . . . . . . . . . Kicked . | . . . . . . . . . . . . Crushed . | . . . . . . . . . . . . Highest Temperature 422 | . 9 . 106 . . 15 354 209 258 . 422 Average Temperature 78 | . 4 . 30 . . 10 81 63 112 . 94 Received Heat Transfer 1509 | . 117 . 360 . . . 209 221 119 33 450 Effects 6 | . . . . . . . 2 . . . 4 Energy Bleed 1 | . . . . . . . . . . . 1 Interference 5 | . . . . . . . 2 . . . 3 Siege Activations . | . . . . . . . . . . . . Robots Corrupted 2 | . . . . . . . . . . . 2 Combat Hostiles 1 | . . . . . . . . . . . 1 Parts Fried 19 | . . . 1 . . . 4 . . . 14 Impact Corruptions . | . . . . . . . . . . . . Robots Melted 2 | . . . . . . . 1 . . . 1 Combat Hostiles 2 | . . . . . . . 1 . . . 1 Parts Melted 15 | . . . 4 . . . 4 1 . . 6 Heat Transferred 8468 | . . . 1138 . . . 2607 1648 1100 . 1975 Parts Sabotaged . | . . . . . . . . . . . . Parts Stolen . | . . . . . . . . . . . . Parts Stripped . | . . . . . . . . . . . . Power Chain Reactions 8 | . . . . . . . 4 2 . . 2 Alert | -11 -10 -10 -9 -9 -7 -6 -6 -6 -6 -6 -6 ------- Run | Yrd Mat Min Mat Min Zio Pro Fac Ext Cet Arc Hub Peak Influence 751 | 20 174 47 751 . . . 363 355 306 184 663 Initial 82 | . 9 47 6 . . . . 61 19 82 . Average 146 | 7 72 25 389 . . . 118 158 157 34 104 Maximum Alert Level 3 | . . . 3 . . . 1 1 1 . 2 Low Security (%) 68 | 100 100 100 5 100 . . 77 56 68 100 80 Level 1 21 | . . . 42 . . . 22 43 31 . 16 Level 2 8 | . . . 48 . . . . . . . 2 Level 3 . | . . . 3 . . . . . . . . Level 4 . | . . . . . . . . . . . . Level 5 . | . . . . . . . . . . . . High Security . | . . . . . . . . . . . . Max Security . | . . . . . . . . . . . . Squads Dispatched 26 | . 1 . 2 . . . 8 2 . . 13 Investigation 6 | . 1 . . . . . 3 1 . . 1 Extermination 6 | . . . . . . . 1 . . . 5 Reinforcement 14 | . . . 2 . . . 4 1 . . 7 Assault . | . . . . . . . . . . . . Garrison . | . . . . . . . . . . . . Intercept . | . . . . . . . . . . . . Searches Triggered . | . . . . . . . . . . . . Construction Impeded 2 | . . . . . . . . . . . 2 Haulers Reinforced 2 | . . . . . . . . . . . 2 Active Scanning Responses . | . . . . . . . . . . . . Cargo Convoy Interrupts . | . . . . . . . . . . . . Stealth | -11 -10 -10 -9 -9 -7 -6 -6 -6 -6 -6 -6 --------- Run | Yrd Mat Min Mat Min Zio Pro Fac Ext Cet Arc Hub Distress Signals 13 | . . . 1 . . . 2 1 2 . 7 Communications Jammed . | . . . . . . . . . . . . Distress Signals . | . . . . . . . . . . . . Times Spotted 210 | . 5 5 32 . . 3 29 27 16 26 67 Peak Tracking Total 16 | . 4 2 6 . . 3 4 5 8 16 14 Tactical Retreats 10 | . . 2 . . . . 4 1 . . 3 Traps | -11 -10 -10 -9 -9 -7 -6 -6 -6 -6 -6 -6 ------- Run | Yrd Mat Min Mat Min Zio Pro Fac Ext Cet Arc Hub Traps Triggered 8 | . 2 . . . . . . 3 . . 3 Indirectly . | . . . . . . . . . . . . Trap Hack Attempts . | . . . . . . . . . . . . Triggered . | . . . . . . . . . . . . Disarmed . | . . . . . . . . . . . . Reprogrammed . | . . . . . . . . . . . . Reused . | . . . . . . . . . . . . Traps Extracted . | . . . . . . . . . . . . Installed . | . . . . . . . . . . . . Triggered . | . . . . . . . . . . . . Machines | -11 -10 -10 -9 -9 -7 -6 -6 -6 -6 -6 -6 ---------- Run | Yrd Mat Min Mat Min Zio Pro Fac Ext Cet Arc Hub Machines Disabled 29 | . . . 3 . . . . 1 1 1 23 Max in Single Turn 7 | . . . 1 . . . . 1 . . 7 Network Hub 4 | . . . . . . . . . . . 4 Machines Repaired . | . . . . . . . . . . . . Machines Dismantled . | . . . . . . . . . . . . Machines Sabotaged . | . . . . . . . . . . . . Overloaded Fab Kills . | . . . . . . . . . . . . Hacking | -11 -10 -10 -9 -9 -7 -6 -6 -6 -6 -6 -6 --------- Run | Yrd Mat Min Mat Min Zio Pro Fac Ext Cet Arc Hub Machines Accessed 40 | . 3 . 6 . . 1 5 12 1 1 11 Terminals 35 | . 3 . 4 . . 1 3 12 1 . 11 Fabricators 1 | . . . . . . . 1 . . . . Repair Stations 2 | . . . 1 . . . 1 . . . . Recycling Units 1 | . . . 1 . . . . . . . . Scanalyzers . | . . . . . . . . . . . . Garrison Access . | . . . . . . . . . . . . Total Hacks 140 | . 10 . 27 . . 1 13 28 2 25 34 Successful 108 | . 4 . 25 . . 1 7 24 1 25 21 Failed 32 | . 6 . 2 . . . 6 4 1 . 13 Catastrophic 2 | . . . . . . . 1 . . . 1 Database Lockouts . | . . . . . . . . . . . . Manual 44 | . 7 . 8 . . . 2 13 1 . 13 Terminals 91 | . 10 . 11 . . 1 5 28 2 . 34 Fabricators 5 | . . . . . . . 5 . . . . Repair Stations 17 | . . . 14 . . . 3 . . . . Recycling Units 2 | . . . 2 . . . . . . . . Scanalyzers . | . . . . . . . . . . . . Garrison Access . | . . . . . . . . . . . . Terminal Hacks 77 | . 4 . 7 . . 1 3 20 1 25 16 Record 27 | . . . 1 . . 1 . . . 25 . Part Schematic 6 | . . . . . . . 1 3 . . 2 Robot Schematic 1 | . . . . . . . . 1 . . . Robot Analysis 10 | . 2 . . . . . . 6 . . 2 Prototype ID Bank 4 | . 1 . . . . . . 1 . . 2 Open Door 8 | . . . . . . . 1 6 1 . . Open DSF 1 | . . . . . . . 1 . . . . Level Access Points 1 | . . . . . . . . . . . 1 Branch Access Points 2 | . 1 . 1 . . . . . . . . Machine Index 1 | . . . . . . . . . . . 1 Terminal Index 2 | . . . 1 . . . . . . . 1 Alert Level 6 | . . . 3 . . . . 1 . . 2 Locate Traps 4 | . . . 1 . . . . 2 . . 1 Recall Extermination 1 | . . . . . . . . . . . 1 Recall Reinforcements 1 | . . . . . . . . . . . 1 Zone Layout 2 | . . . . . . . . . . . 2 Fabricator Hacks 3 | . . . . . . . 3 . . . . Network Status 1 | . . . . . . . 1 . . . . Load Schematic 1 | . . . . . . . 1 . . . . Build 1 | . . . . . . . 1 . . . . Repair Station Hacks 15 | . . . 14 . . . 1 . . . . Scan Component 8 | . . . 7 . . . 1 . . . . Repair 7 | . . . 7 . . . . . . . . Recycling Unit Hacks . | . . . . . . . . . . . . Scanalyzer . | . . . . . . . . . . . . Garrison Access Hacks . | . . . . . . . . . . . . Unauthorized Hacks 13 | . . . 4 . . . . 4 . . 5 Terminals 11 | . . . 2 . . . . 4 . . 5 Botnet 11 | . . . 2 . . . . 4 . . 5 Fabricators . | . . . . . . . . . . . . Repair Stations . | . . . . . . . . . . . . Recycling Units 2 | . . . 2 . . . . . . . . Reject 1 | . . . 1 . . . . . . . . Mask 1 | . . . 1 . . . . . . . . Scanalyzers . | . . . . . . . . . . . . Garrison Access . | . . . . . . . . . . . . Data Cores Recovered . | . . . . . . . . . . . . Used . | . . . . . . . . . . . . Hacking Detections 28 | . 3 . 3 . . . 3 7 1 . 11 Full Trace Events 5 | . 1 . . . . . 3 1 . . . Feedback Events 2 | . 1 . . . . . 1 . . . . Corruption 2 | . 1 . . . . . 1 . . . . Feedback Blocked . | . . . . . . . . . . . . Robot Schematics Acquired 1 | . . . . . . . . 1 . . . Robots Built . | . . . . . . . . . . . . Authchips . | . . . . . . . . . . . . Time . | . . . . . . . . . . . . Total Robot Build Rating . | . . . . . . . . . . . . Part Schematics Acquired 6 | . . . . . . . 1 3 . . 2 Parts Built 1 | . . . . . . . 1 . . . . Authchips . | . . . . . . . . . . . . Time 187 | . . . . . . . 187 . . . . Total Part Build Rating 7 | . . . . . . . 7 . . . . Parts Repaired 7 | . . . 7 . . . . . . . . Time 188 | . . . 188 . . . . . . . . Parts Recycled . | . . . . . . . . . . . . Recycled Matter . | . . . . . . . . . . . . Retrieved Matter . | . . . . . . . . . . . . Retrieved Components . | . . . . . . . . . . . . Parts Scanalyzed . | . . . . . . . . . . . . Part Schematics Acquired . | . . . . . . . . . . . . Parts Damaged . | . . . . . . . . . . . . Bothacking | -11 -10 -10 -9 -9 -7 -6 -6 -6 -6 -6 -6 ------------ Run | Yrd Mat Min Mat Min Zio Pro Fac Ext Cet Arc Hub Used RIF Installer . | . . . . . . . . . . . . Robots Hacked . | . . . . . . . . . . . . Non-combat . | . . . . . . . . . . . . Combat . | . . . . . . . . . . . . Robot Hacks Applied . | . . . . . . . . . . . . Relay Couplers Released . | . . . . . . . . . . . . Fabnet Peak Effective % . | . . . . . . . . . . . . Robots Rewired 1 | . . . . . . . 1 . . . . Allies Hacked . | . . . . . . . . . . . . Hacks Repelled . | . . . . . . . . . . . . Allies | -11 -10 -10 -9 -9 -7 -6 -6 -6 -6 -6 -6 -------- Run | Yrd Mat Min Mat Min Zio Pro Fac Ext Cet Arc Hub Total Allies 11 | . . . . . . . 1 7 3 . . Largest Group 5 | . . . . . . . 1 5 4 3 . Highest-Rated Group 447 | . . . . . . . 29 241 447 351 . Highest-Rated Ally 159 | . . . . . . . 29 159 159 159 . Total Orders . | . . . . . . . . . . . . Ally Attacks 135 | . . . . . . . 7 57 49 22 . Total Damage 3128 | . . . . . . . 105 1051 987 985 . Kills 14 | . . . . . . . 1 6 3 4 . Allies Corrupted 1 | . . . . . . . . 1 . . . Allies Melted . | . . . . . . . . . . . . Intel | -11 -10 -10 -9 -9 -7 -6 -6 -6 -6 -6 -6 ------- Run | Yrd Mat Min Mat Min Zio Pro Fac Ext Cet Arc Hub Robot Analysis Total 10 | . 2 . . . . . . 6 . . 2 Derelict Logs Recovered 1 | . . . . . . 1 . . . . . Drone Launches . | . . . . . . . . . . . . Drone Recoveries . | . . . . . . . . . . . . Exploration | -11 -10 -10 -9 -9 -7 -6 -6 -6 -6 -6 -6 ------------- Run | Yrd Mat Min Mat Min Zio Pro Fac Ext Cet Arc Hub Turns Passed 9393 | 155 390 262 1218 21 1494 434 898 948 291 904 2378 Spaces Moved 4910 | 95 280 175 603 14 918 264 492 595 140 168 1166 Core 150 | 9 . . 1 . . . . . . 104 36 Treads 1788 | . . . 354 14 918 264 78 . . . 160 Legs 244 | 86 48 . 99 . . . . . . . 11 Wheels 2728 | . 232 175 149 . . . 414 595 140 64 959 Hover . | . . . . . . . . . . . . Flight . | . . . . . . . . . . . . Fastest Speed 50 | 50 95 80 80 160 160 160 130 115 130 145 50 Average Speed 157 | 123 111 89 135 160 160 160 135 129 141 519 162 Slowest Speed 900 | 350 260 95 200 160 160 160 400 130 145 750 900 Overloaded Moves . | . . . . . . . . . . . . Propulsion Burnouts . | . . . . . . . . . . . . Robots Hopped . | . . . . . . . . . . . . Cave-ins Triggered . | . . . . . . . . . . . . Exploration Rate (%) 55 | 4 51 55 52 5 86 60 11 75 70 99 95 Regions Visited 11 Branch Regions 8 Pre-discovered Areas 1 | . . . . . 1 . . . . . . Known Exits Taken 10 | 1 1 1 1 . 1 1 1 1 1 1 . Unknown Exits Taken 1 | . . . . 1 . . . . . . . Scrap Searched 4 | . . . . . 3 1 . . . . . Spaces Dug 8 | . . . . . . 6 . . . . 2 Terrain Destroyed 948 | . . . 145 . . 17 28 33 47 . 678 Melee . | . . . . . . . . . . . . Projectile 31 | . . . 1 . . . . . 2 . 28 AOE 917 | . . . 144 . . 17 28 33 45 . 650 Terrain Rammed . | . . . . . . . . . . . . Walls Destroyed . | . . . . . . . . . . . . Machines Disabled . | . . . . . . . . . . . . Actions | -11 -10 -10 -9 -9 -7 -6 -6 -6 -6 -6 -6 --------- Run | Yrd Mat Min Mat Min Zio Pro Fac Ext Cet Arc Hub Total 5985 | 115 317 277 906 13 946 270 605 703 183 205 1445 Wait 472 | 1 . 96 176 . 14 . 25 17 9 38 96 Move 4899 | 94 279 174 602 13 917 263 491 594 139 167 1166 Hop . | . . . . . . . . . . . . Pick Up 52 | 3 3 2 23 . 5 1 3 7 1 . 4 Fast Attach 85 | 8 10 . 18 . 2 . 8 9 3 . 27 Attach 35 | . . 2 11 . . 1 5 4 1 . 11 Detach 19 | 1 1 . 2 . 1 . 3 1 1 . 9 Swap 22 | . . . 4 . . 1 4 6 5 . 2 Drop 83 | . 5 . 14 . 7 . 6 13 5 . 33 Fire 292 | 8 19 3 56 . . 4 58 28 19 . 97 Melee . | . . . . . . . . . . . . Ram . | . . . . . . . . . . . . Kick . | . . . . . . . . . . . . Crush . | . . . . . . . . . . . . Escape Stasis 24 | . . . . . . . . 24 . . . Rewire 2 | . . . . . . . 2 . . . . Trap . | . . . . . . . . . . . . Miscellaneous . | . . . . . . . . . . . . Route ------- -11/Scrapyard -10/Materials (discovered 3 exits: *Mat x2 / *Min) -10/Mines -9/Materials (discovered 3 exits: *Mat / *Min x2) -9/Mines -7/Zion -6/Proximity Caves -6/Factory (discovered 2 exits: *Low / *Ext) -6/Extension (discovered 2 exits: *Fac / *Cet) -6/Cetus (discovered 2 exits: *Fac / *Arc) -6/Archives (discovered 3 exits: *Fac / *Hub x2) -6/Hub_04(d) (discovered 4 exits: *Fac x4) History --------- Turn | Location | Event 9 | -11/Scrapyard | Identified exit to Materials 9 | -11/Scrapyard | Discovered exit to Materials (range 15) 156 | -11/Scrapyard | Entered Materials 156 | -10/Materials | Evolved 1 slot: Utility x1 309 | -10/Materials | Build established: Hacker-Mutant 331 | -10/Materials | Identified exit to Materials 331 | -10/Materials | Discovered exit to Materials (range 13) 477 | -10/Materials | Identified exit to Mines 498 | -10/Materials | Discovered exit to Materials (range 5) 546 | -10/Materials | Entered Mines 547 | -10/Mines | YI-UF0 nonchalantly dropped a Grenade Launcher on the ground 585 | -10/Mines | Assembled infested the area 590 | -10/Mines | Assisted by a Guerilla fighting off Assembled 637 | -10/Mines | Discovered exit to Materials (range 10) 648 | -10/Mines | Lost 4 parts (1n1u2w) 711 | -10/Mines | Lost 3 parts (1p2n) 808 | -10/Mines | Entered Materials 808 | -9/Materials | Evolved 2 slots: Propulsion x1, Utility x1 872 | -9/Materials | Identified exit to Mines 1070 | -9/Materials | Lost 6 parts (1p2n1u2w) 1459 | -9/Materials | Identified exit to Materials 1459 | -9/Materials | Discovered exit to Materials (range 15) 1545 | -9/Materials | Repaired Lgt. Treads 1578 | -9/Materials | Repaired Hvy. Assault Rifle 1604 | -9/Materials | Repaired Lgt. Treads 1632 | -9/Materials | Repaired Med. Storage Unit 1703 | -9/Materials | Repaired Lgt. Treads 1730 | -9/Materials | Repaired Lgt. Assault Rifle 1756 | -9/Materials | Repaired Structural Scanner 1961 | -9/Materials | Core integrity fell below 50% 2026 | -9/Materials | Entered Mines 2037 | -9/Mines | A Derelict revealed a hidden shortcut to a safe place 2038 | -9/Mines | Met a Derelict bent on vengeance 2047 | -9/Mines | Entered Zion 2449 | -7/Zion | Learned location of Quarantine (-2) 2615 | -7/Zion | Found Prototype Energy Gun 3505 | -7/Zion | Found Prototype Device 3505 | -7/Zion | Identified Phasing AFG 3520 | -7/Zion | Identified exit to Proximity Caves 3520 | -7/Zion | Discovered exit to Proximity Caves (range 13) 3541 | -7/Zion | Entered Proximity Caves 3791 | -6/Proximity Caves | Learned Factory emergency access door positions 3929 | -6/Proximity Caves | Identified exit to Factory 3929 | -6/Proximity Caves | Discovered exit to Factory (range 16) 3975 | -6/Proximity Caves | Entered Factory 3975 | -6/Factory | Evolved 6 slots: Power x1, Utility x3, Weapon x2 3990 | -6/Factory | Identified exit to DSF 3991 | -6/Factory | Identified Storm Laser 4011 | -6/Factory | Identified exit to Lower Caves 4011 | -6/Factory | Discovered exit to Lower Caves (range 15) 4304 | -6/Factory | Build established: Hacker-Tank 4552 | -6/Factory | Fabricated Exp. Hacking Suite (x1) 4868 | -6/Factory | Identified exit to Extension 4868 | -6/Factory | Discovered exit to Extension (range 6) 4873 | -6/Factory | Entered Extension 4953 | -6/Extension | Rescued a captive Derelict 4991 | -6/Extension | Rescued a captive Derelict 5313 | -6/Extension | Rescued a captive Derelict 5361 | -6/Extension | Rescued a captive Derelict 5362 | -6/Extension | Rescued a captive Derelict 5384 | -6/Extension | Rescued a captive Derelict 5387 | -6/Extension | Spotted B-75 Beast 5394 | -6/Extension | Spotted B-75 Beast 5415 | -6/Extension | Destroyed B-75 Beast 5429 | -6/Extension | Allies destroyed B-75 Beast 5449 | -6/Extension | Lost 4 parts (1p1n1u1w) 5725 | -6/Extension | Rescued A7 5806 | -6/Extension | Identified exit to Factory 5806 | -6/Extension | Discovered exit to Factory (range 10) 5807 | -6/Extension | Identified exit to Cetus 5807 | -6/Extension | Discovered exit to Cetus (range 6) 5821 | -6/Extension | Disrupted transfer network 5821 | -6/Extension | Entered Cetus 5821 | -6/Cetus | Accompanied by 4 allies (A7) 5826 | -6/Cetus | Acquired a Cetus Manufacturing Module code from A7 5840 | -6/Cetus | Spotted Cetus Guard 5840 | -6/Cetus | Spotted Cetus Guard 5842 | -6/Cetus | Spotted Cetus Guard 5851 | -6/Cetus | Destroyed Cetus Guard 5851 | -6/Cetus | Spotted Cetus Guard 5858 | -6/Cetus | Destroyed Cetus Guard 5869 | -6/Cetus | Destroyed Cetus Guard 5879 | -6/Cetus | Destroyed Cetus Guard 5886 | -6/Cetus | Lost 3 allies 5954 | -6/Cetus | Escorted A7 to Cetus Mainframe 5965 | -6/Cetus | Started Cetus Manufacturing Module 5982 | -6/Cetus | Identified exit to Archives 5982 | -6/Cetus | Discovered exit to Archives (range 16) 5990 | -6/Cetus | Manufactured an Enhanced Grunt 6006 | -6/Cetus | Spotted Cetus Guard 6006 | -6/Cetus | Spotted Cetus Guard 6009 | -6/Cetus | Spotted Cetus Guard 6010 | -6/Cetus | Spotted Cetus Guard 6015 | -6/Cetus | Manufactured an Enhanced Grunt 6022 | -6/Cetus | Allies destroyed Cetus Guard 6037 | -6/Cetus | Destroyed Cetus Guard 6040 | -6/Cetus | Manufactured an Enhanced Grunt 6041 | -6/Cetus | Destroyed Cetus Guard 6042 | -6/Cetus | Cetus Manufacturing Module disabled 6051 | -6/Cetus | Discovered exit to Factory (range 16) 6059 | -6/Cetus | Met Revision 17 6112 | -6/Cetus | Entered Archives 6112 | -6/Archives | Accompanied by 3 allies (A7) 6117 | -6/Archives | Received a hacking code to weaken MAIN.C 6137 | -6/Archives | Met Zhirov 6143 | -6/Archives | Reinforcements dispatched to Archives 6153 | -6/Archives | Read partially decrypted archive contents 6153 | -6/Archives | Read partially decrypted archive contents 6156 | -6/Archives | Identified exit to Hub_04(d) 6156 | -6/Archives | Discovered exit to Hub_04(d) (range 16) 6169 | -6/Archives | Unable to access archive contents 6172 | -6/Archives | Discovered exit to Factory (range 16) 6188 | -6/Archives | Reinforcements dispatched to Archives 6190 | -6/Archives | Zhirov warped through subspace 6208 | -6/Archives | Zhirov detonated Archives 6239 | -6/Archives | Lost 8 parts (1p2n3u2w) 6494 | -6/Archives | Build established: Hacker-Mutant 6576 | -6/Archives | Discovered exit to Hub_04(d) (range 15) 7016 | -6/Archives | Entered Hub_04(d) 7203 | -6/Hub_04(d) | Destroyed 7 combat bots 7291 | -6/Hub_04(d) | Spotted B-75 Beast 7299 | -6/Hub_04(d) | Destroyed B-75 Beast 7877 | -6/Hub_04(d) | Core integrity fell below 50% 8657 | -6/Hub_04(d) | Build established: Hacker-Tank 9302 | -6/Hub_04(d) | Network Hub disabled 9304 | -6/Hub_04(d) | Network Hub disabled 9314 | -6/Hub_04(d) | Disrupted transfer network 9334 | -6/Hub_04(d) | Network Hub disabled 9354 | -6/Hub_04(d) | Spotted Lightning 9357 | -6/Hub_04(d) | Spotted Lightning 9358 | -6/Hub_04(d) | Spotted Lightning 9367 | -6/Hub_04(d) | Spotted Lightning 9372 | -6/Hub_04(d) | Spotted Lightning 9372 | -6/Hub_04(d) | Spotted Lightning 9372 | -6/Hub_04(d) | Spotted Lightning 9372 | -6/Hub_04(d) | Network Hub disabled 9374 | -6/Hub_04(d) | Spotted Lightning 9374 | -6/Hub_04(d) | Spotted Lightning 9375 | -6/Hub_04(d) | System corruption reached 10% 9387 | -6/Hub_04(d) | Core integrity fell below 20% 9394 | -6/Hub_04(d) | Destroyed by Lightning with EMDS Last Messages --------------- 09381_ Penetrated by EMDS Slug. 09382_ Dropped Mni. Grenade Launcher. 09382_ Discarded Adv. Heat Sink. 09382_ Penetrated by EMDS Slug. 09382_ EMDS Slug penetrates Wall. 09383_ Dropped Impact Mace. 09383_ Dropped Lrg. Storage Unit. 09383_ Penetrated by EMDS Slug. 09384_ Dropped Imp. Heavy Armor Plating. 09384_ Penetrated by EMDS Slug. 09384_ EMDS Slug penetrates Lightning. 09385_ Acquired 27 matter. 09385_ Penetrated by EMDS Slug. 09385_ EMDS Slug penetrates Wall. 09386_ Penetrated by EMDS Slug. 09389_ EMDS Slug penetrates Lightning. 09391_ System corrupted: Imp. Utility Shielding rejected. 09391_ Acquired Imp. Utility Shielding. 09391_ Penetrated by EMDS Slug. [Achievement: I Was Wrong!] Map ----- +----------------------------------------------------+ | #??# =[ ## ## """" # #?### | | ##??# =[ # ## """" # #?# | | ????# [[ ## ## # #?##"""""""""""" | | ????# ## ## # ####%* =%! #"= | | ###########+######## ## + =%" % ! !"=% | | ####+#####+##### #"= | | ^ !## # ## | | ^ " ## " """" " ## | | ###########+### " ## " """" "= ## | | ?# # " ## " """" !" ! ## | | ?# """ """ + ## """" # ## | | ?# # ##/ ########+## | | ?# """ """ ###### ;;;;###;;;;"######### | | ## ###### ; ;! " | | # """ """ # # ; ; ! "" # | | # # # " ; " /# ## | | # """ """ # # " ; # #### | | # # < + " ; + # | | # """ """ # # # ; # #"" | | " # # ##;;;;;;;;;; ##+## #"" | | # # # # ; # #"T | | ####+##############[ # ; %! # #"" | | #??# #### """!+[ # ; # # " | | #??# + """ "T"*#!!# ; ; " | | #??###### # #;;; " | | ##???????# ; @ ;; " """"# | | ?????????####/###;;; ; ! ; ##% # | | ????????????# ####;;;;;;;; ; ## " # | | ????????????# ## ;; ; ## # | | ????????????# ## ;; ; ## # | | ????????????# ## ;; ; ## # | | ????????????# ## !;;; ;;;;;;;;#### # | | ????????????# ## %; ## ]!! # | | ????????????# ## !=# ## !!! # | | ????????????# ## *%##; ## !! " | | ????????????# ## [%+ """"! ####" | | ????????????# ## ##; " !!!!] " | | ????????????# ########+## ![=%= " | | #???????????# #????### # ## [ =*]%/ " | | #???????????# #??????# ### ;;;"" !]!*! | | #??????######+######## ######## *############""" | | #??????# = # [=! !% | | #??????# # !%= %[% | | #??????#! """" """" # ####"""" ="###########+## | | #??????# """" """" # ## ###"##????????? # | | ???????# """" """" # ## #?##????????? " T # | | ???????# """" """" + + #???????????# " # | | ???????# # ## #???????????# " ]]# | | ???????# """" """" # ## #???????????# ]!# | | ????????? """" """" # ## #??????????? # | +----------------------------------------------------+ Best States ------------- Heat Dissipation 83 Energy Generation 36 Energy Capacity 540 Matter Stores 450 Matter Capacity 450 Sight Range 16 Robot Scan Range 16 Terrain Scan Range 16 Terrain Scan Density 10 Armor Coverage 600 Resistance: KI 35 Resistance: TH 35 Resistance: EX 35 Resistance: EM 35 Resistance: I 35 Resistance: S 35 Resistance: P 35 Core Shielding 20 Utility Shielding 90 Phase Shifting 5 Evasion (%) 55 Targeting Accuracy 10 Recoil Reduction 3 Offensive Hacking 46 Defensive Hacking 10 Item Schematics ----------------- Exp. Hacking Suite | -6/Factory | Hacked Adv. System Shield | -6/Extension | Hacked Quantum Capacitor | -6/Extension | Hacked Hvy. Pick | -6/Extension | Hacked Rnf. Antimatter Reactor | -6/Hub_04(d) | Hacked Energy Mantle | -6/Hub_04(d) | Hacked Robot Schematics ------------------ L-41 Fighter | -6/Extension | Hacked Fabricated ------------ Exp. Hacking Suite | x1 | -6/Factory Alien Tech Used ----------------- None Achievements -------------- I Was Wrong! Challenges ------------ None Game ------ Seed MappingForceField Manual? 0 Play Time 01:24:25 Cumulative 364.1 hours Start 2024.04.09 @ 03:31:35 End 2024.04.11 @ 00:59:18 Sessions 7 Manual Loads 0 Difficulty Explorer Special Mode None Game No. 60 Rogue 13 Adventurer 45 Explorer 2 Win Type - Total 19 Types 7/0/5/4/1/0/1/1/0 Lore% 76 Gallery% 82 Achievement% 78 Wizard Run 0 Options --------- Layout 0 ASCII 0 Keyboard 0 Movement Numpad Keybinds 0 Fullscreen 1 Font 24/Smallcaps Map View 76x50 Zoom Use 0% Tactical HUD 1 Map Filters NONE Filters NONE Steam 1 RUN: 52d17891-08e3-4f67-a108-8c1e3356b81a